[Event "Late-Titled-Tuesday-Blitz-October-03-2023"]
[Site "Chess.com"]
[Date "2023.10.03"]
[Round "3"]
[White "Grossboss19"]
[Black "GGuseinov"]
[Result "0-1"]
[WhiteElo "2524"]
[BlackElo "2881"]
[TimeControl "180+1"]
[EndTime "14:24:57 PDT"]
[Termination "GGuseinov won by resignation"]

1. Nf3 {[%clk 0:02:52.3]} 1... g6 {[%clk 0:02:59.9]} 2. g3 {[%clk 0:02:49.1]}
2... Bg7 {[%clk 0:03:00]} 3. Bg2 {[%clk 0:02:47.4]} 3... d6 {[%clk 0:03:00.9]}
4. O-O {[%clk 0:02:47.5]} 4... e5 {[%clk 0:02:45.6]} 5. c4 {[%clk 0:02:44.8]}
5... f5 {[%clk 0:02:45.7]} 6. Nc3 {[%clk 0:02:40.5]} 6... Nf6 {[%clk 0:02:45.9]}
7. Rb1 {[%clk 0:02:31.2]} 7... O-O {[%clk 0:02:45.3]} 8. b4 {[%clk 0:02:25.4]}
8... e4 {[%clk 0:02:45.1]} 9. Ne1 {[%clk 0:02:19.5]} 9... Nc6 {[%clk 0:02:45]}
10. b5 {[%clk 0:02:18.4]} 10... Ne7 {[%clk 0:02:38.3]} 11. Bb2 {[%clk
0:02:14.6]} 11... Be6 {[%clk 0:02:31.6]} 12. d3 {[%clk 0:02:05.9]} 12... exd3
{[%clk 0:02:32]} 13. exd3 {[%clk 0:01:59.6]} 13... d5 {[%clk 0:02:32.5]} 14. Qe2
{[%clk 0:01:55.8]} 14... Qd7 {[%clk 0:02:31.6]} 15. c5 {[%clk 0:01:44.8]} 15...
d4 {[%clk 0:02:26.9]} 16. Nd1 {[%clk 0:01:44.8]} 16... Rae8 {[%clk 0:02:20.3]}
17. Nc2 {[%clk 0:01:39]} 17... Nh5 {[%clk 0:02:11.9]} 18. Qd2 {[%clk 0:01:32.8]}
18... f4 {[%clk 0:02:09.1]} 19. Re1 {[%clk 0:01:25.6]} 19... Bxa2 {[%clk
0:02:01.9]} 20. Ra1 {[%clk 0:01:23.4]} 20... Bd5 {[%clk 0:02:02.3]} 21. Bxd5+
{[%clk 0:01:19.7]} 21... Qxd5 {[%clk 0:01:53.5]} 22. Rxa7 {[%clk 0:01:14.2]}
22... Nf5 {[%clk 0:01:40.9]} 23. Nb4 {[%clk 0:00:59.3]} 23... Qf3 {[%clk
0:01:32.9]} 24. c6 {[%clk 0:00:44.9]} 24... fxg3 {[%clk 0:01:25.8]} 25. hxg3
{[%clk 0:00:39.8]} 25... Bh6 {[%clk 0:01:26.1]} 26. Rxe8 {[%clk 0:00:27.9]}
26... Rxe8 {[%clk 0:01:27]} 27. cxb7 {[%clk 0:00:23]} 27... Bxd2 {[%clk
0:01:26.1]} 28. Ra8 {[%clk 0:00:23.5]} 28... Rxa8 {[%clk 0:01:19.6]} 29. bxa8=Q+
{[%clk 0:00:22.7]} 29... Qxa8 {[%clk 0:01:20.5]} 0-1

[Event "Late-Titled-Tuesday-Blitz-October-03-2023"]
[Site "Chess.com"]
[Date "2023.10.03"]
[Round "3"]
[White "RichardLeyvaP"]
[Black "UK_23"]
[Result "1-0"]
[WhiteElo "2593"]
[BlackElo "2396"]
[TimeControl "180+1"]
[EndTime "14:25:00 PDT"]
[Termination "RichardLeyvaP won by resignation"]

1. e4 {[%clk 0:02:54.5]} 1... e5 {[%clk 0:03:00.3]} 2. d4 {[%clk 0:02:53.6]}
2... exd4 {[%clk 0:03:00.2]} 3. Qxd4 {[%clk 0:02:54.2]} 3... Nc6 {[%clk
0:02:59.3]} 4. Qe3 {[%clk 0:02:54.3]} 4... g6 {[%clk 0:02:53.4]} 5. Nc3 {[%clk
0:02:53.9]} 5... Bg7 {[%clk 0:02:53.9]} 6. Bc4 {[%clk 0:02:53]} 6... Nge7 {[%clk
0:02:54]} 7. h4 {[%clk 0:02:52.4]} 7... h6 {[%clk 0:02:53.8]} 8. Nf3 {[%clk
0:02:49.6]} 8... d6 {[%clk 0:02:53.9]} 9. Bd2 {[%clk 0:02:49.4]} 9... O-O {[%clk
0:02:51.3]} 10. O-O-O {[%clk 0:02:49]} 10... a6 {[%clk 0:02:50.6]} 11. h5 {[%clk
0:02:41.2]} 11... g5 {[%clk 0:02:50.5]} 12. Nd5 {[%clk 0:02:23.1]} 12... Nxd5
{[%clk 0:02:43.8]} 13. Bxd5 {[%clk 0:02:22.9]} 13... Ne7 {[%clk 0:02:39.7]} 14.
Bb3 {[%clk 0:02:22.1]} 14... Be6 {[%clk 0:02:26.7]} 15. Bc3 {[%clk 0:02:21.3]}
15... Bxb3 {[%clk 0:02:24.2]} 16. axb3 {[%clk 0:02:21.4]} 16... f6 {[%clk
0:02:09.4]} 17. Nd4 {[%clk 0:02:18.3]} 17... Qc8 {[%clk 0:02:07.6]} 18. f3
{[%clk 0:02:15.1]} 18... a5 {[%clk 0:02:06.5]} 19. g4 {[%clk 0:02:14.1]} 19...
a4 {[%clk 0:02:06.5]} 20. bxa4 {[%clk 0:02:14.4]} 20... Rxa4 {[%clk 0:02:06.4]}
21. b3 {[%clk 0:02:14.6]} 21... Ra6 {[%clk 0:02:04]} 22. Nf5 {[%clk 0:02:14.5]}
22... Nxf5 {[%clk 0:02:02.4]} 23. exf5 {[%clk 0:02:14.8]} 23... Re8 {[%clk
0:02:00.3]} 24. Qd3 {[%clk 0:02:11.6]} 24... Ra8 {[%clk 0:01:55.4]} 25. Rhe1
{[%clk 0:02:11.3]} 25... Qd7 {[%clk 0:01:55.4]} 26. Qd5+ {[%clk 0:02:08.1]}
26... Kh7 {[%clk 0:01:52.5]} 27. Qxb7 {[%clk 0:02:08.1]} 27... Reb8 {[%clk
0:01:36.1]} 28. Qe4 {[%clk 0:02:04.2]} 28... Re8 {[%clk 0:01:31.8]} 29. Qd5
{[%clk 0:02:00.2]} 29... Rxe1 {[%clk 0:01:11.9]} 30. Rxe1 {[%clk 0:01:59.5]}
30... Re8 {[%clk 0:01:12.8]} 31. Re6 {[%clk 0:01:48.9]} 31... Rf8 {[%clk
0:01:10.3]} 32. Kb2 {[%clk 0:01:34.6]} 32... Rf7 {[%clk 0:01:08.9]} 33. b4
{[%clk 0:01:28.5]} 33... Bh8 {[%clk 0:01:08.8]} 34. b5 {[%clk 0:01:27]} 34...
Bg7 {[%clk 0:01:08.9]} 35. Qc6 {[%clk 0:01:25.9]} 35... Kg8 {[%clk 0:00:58.5]}
36. Kb3 {[%clk 0:01:22.5]} 36... Qxc6 {[%clk 0:00:50.9]} 37. bxc6 {[%clk
0:01:22.2]} 37... Kf8 {[%clk 0:00:51.6]} 38. Kc4 {[%clk 0:01:21.7]} 38... Bh8
{[%clk 0:00:50.3]} 39. Ba5 {[%clk 0:01:19.7]} 39... Bg7 {[%clk 0:00:50.7]} 40.
Kb5 {[%clk 0:01:19.3]} 40... Bh8 {[%clk 0:00:51.1]} 41. Ka6 {[%clk 0:01:19.6]}
41... Re7 {[%clk 0:00:50.1]} 42. Rxe7 {[%clk 0:01:17.9]} 42... Kxe7 {[%clk
0:00:51]} 43. Bxc7 {[%clk 0:01:17.8]} 1-0

[Event "Late-Titled-Tuesday-Blitz-October-03-2023"]
[Site "Chess.com"]
[Date "2023.10.03"]
[Round "3"]
[White "josiur"]
[Black "rookoco"]
[Result "0-1"]
[WhiteElo "2524"]
[BlackElo "2753"]
[TimeControl "180+1"]
[EndTime "14:25:03 PDT"]
[Termination "rookoco won by checkmate"]

1. d4 {[%clk 0:03:00.9]} 1... Nf6 {[%clk 0:02:58.9]} 2. Nf3 {[%clk 0:03:00.9]}
2... b6 {[%clk 0:02:57]} 3. Bf4 {[%clk 0:03:00.3]} 3... Bb7 {[%clk 0:02:53.4]}
4. e3 {[%clk 0:03:00.6]} 4... c5 {[%clk 0:02:53.1]} 5. Be2 {[%clk 0:02:58]} 5...
g6 {[%clk 0:02:49.1]} 6. h3 {[%clk 0:02:57.3]} 6... Bg7 {[%clk 0:02:49.2]} 7.
O-O {[%clk 0:02:57.5]} 7... O-O {[%clk 0:02:49.3]} 8. c4 {[%clk 0:02:56.1]} 8...
cxd4 {[%clk 0:02:48]} 9. exd4 {[%clk 0:02:55.7]} 9... d5 {[%clk 0:02:47.8]} 10.
Nc3 {[%clk 0:02:45.8]} 10... Nc6 {[%clk 0:02:47.1]} 11. c5 {[%clk 0:02:36.1]}
11... Ne4 {[%clk 0:02:45.9]} 12. Ne5 {[%clk 0:02:18.9]} 12... Nxe5 {[%clk
0:02:36]} 13. Nxe4 {[%clk 0:02:10.4]} 13... Nd7 {[%clk 0:02:34.8]} 14. c6 {[%clk
0:01:38.4]} 14... Bxc6 {[%clk 0:02:27.6]} 15. Ng5 {[%clk 0:01:37.5]} 15... e5
{[%clk 0:02:18]} 16. dxe5 {[%clk 0:01:33.3]} 16... Nxe5 {[%clk 0:02:18.9]} 17.
Rc1 {[%clk 0:01:30.4]} 17... Bb7 {[%clk 0:02:17.2]} 18. Nf3 {[%clk 0:01:26.4]}
18... Nc6 {[%clk 0:02:06]} 19. b3 {[%clk 0:01:21.9]} 19... Rc8 {[%clk
0:01:59.4]} 20. Qd2 {[%clk 0:01:17]} 20... d4 {[%clk 0:01:56.9]} 21. Rfd1 {[%clk
0:01:15.5]} 21... Re8 {[%clk 0:01:51.1]} 22. Bc4 {[%clk 0:01:02.3]} 22... Qf6
{[%clk 0:01:48.1]} 23. Bg5 {[%clk 0:00:57.4]} 23... Qf5 {[%clk 0:01:47.1]} 24.
Bd3 {[%clk 0:00:52.1]} 24... Qd7 {[%clk 0:01:40.6]} 25. Bb5 {[%clk 0:00:46.9]}
25... a6 {[%clk 0:01:37.6]} 26. Bxc6 {[%clk 0:00:41.1]} 26... Rxc6 {[%clk
0:01:36.4]} 27. Rxc6 {[%clk 0:00:23.3]} 27... Qxc6 {[%clk 0:01:35.1]} 28. Rc1
{[%clk 0:00:19.7]} 28... Qd5 {[%clk 0:01:33.5]} 29. Rc7 {[%clk 0:00:18.1]} 29...
d3 {[%clk 0:01:32.2]} 30. Be3 {[%clk 0:00:17]} 30... b5 {[%clk 0:01:29.8]} 31.
Ng5 {[%clk 0:00:10.5]} 31... Qxg2# {[%clk 0:01:27.9]} 0-1

[Event "Late-Titled-Tuesday-Blitz-October-03-2023"]
[Site "Chess.com"]
[Date "2023.10.03"]
[Round "3"]
[White "egnfanclub"]
[Black "arminmusovic"]
[Result "0-1"]
[WhiteElo "2398"]
[BlackElo "2506"]
[TimeControl "180+1"]
[EndTime "14:25:05 PDT"]
[Termination "arminmusovic won by checkmate"]

1. e4 {[%clk 0:03:00.9]} 1... c6 {[%clk 0:02:55.8]} 2. d4 {[%clk 0:03:00.3]}
2... d5 {[%clk 0:02:56.3]} 3. exd5 {[%clk 0:03:01.2]} 3... cxd5 {[%clk
0:02:57.2]} 4. c4 {[%clk 0:03:01.7]} 4... Nc6 {[%clk 0:02:57.5]} 5. Nc3 {[%clk
0:03:02.6]} 5... Nf6 {[%clk 0:02:57.6]} 6. Nf3 {[%clk 0:03:03.3]} 6... Bg4
{[%clk 0:02:57.7]} 7. cxd5 {[%clk 0:03:03.4]} 7... Nxd5 {[%clk 0:02:58.6]} 8.
Qb3 {[%clk 0:03:03.8]} 8... Bxf3 {[%clk 0:02:59.1]} 9. gxf3 {[%clk 0:03:03.7]}
9... Nb6 {[%clk 0:02:59.6]} 10. d5 {[%clk 0:03:02.9]} 10... Nd4 {[%clk
0:03:00.2]} 11. Bb5+ {[%clk 0:03:02.6]} 11... Nd7 {[%clk 0:03:00.6]} 12. Qa4
{[%clk 0:03:01.2]} 12... Nxb5 {[%clk 0:03:00.2]} 13. Qxb5 {[%clk 0:02:51.7]}
13... g6 {[%clk 0:02:59.9]} 14. Bg5 {[%clk 0:02:43.4]} 14... Bg7 {[%clk
0:02:57.7]} 15. d6 {[%clk 0:02:43.6]} 15... Bf6 {[%clk 0:02:58]} 16. Bh6 {[%clk
0:02:16]} 16... a6 {[%clk 0:02:45.4]} 17. Qe2 {[%clk 0:01:50.4]} 17... Qa5
{[%clk 0:02:30.3]} 18. O-O {[%clk 0:01:46.5]} 18... e6 {[%clk 0:02:12.4]} 19.
Ne4 {[%clk 0:01:40.3]} 19... O-O-O {[%clk 0:02:09.5]} 20. Nxf6 {[%clk
0:01:15.9]} 20... Nxf6 {[%clk 0:02:10.4]} 21. Bg7 {[%clk 0:01:10.4]} 21... Qg5+
{[%clk 0:01:59.8]} 22. Kh1 {[%clk 0:01:09.8]} 22... Rhg8 {[%clk 0:01:52.9]} 23.
Qc4+ {[%clk 0:00:43.3]} 23... Kb8 {[%clk 0:01:50.5]} 24. Qc7+ {[%clk 0:00:42.2]}
24... Ka8 {[%clk 0:01:49.4]} 25. Qxf7 {[%clk 0:00:41]} 25... Nh5 {[%clk
0:01:42.2]} 26. Bd4 {[%clk 0:00:21.5]} 26... Qd5 {[%clk 0:01:37.4]} 27. Rad1
{[%clk 0:00:15.5]} 27... Rgf8 {[%clk 0:01:32.3]} 28. Qe7 {[%clk 0:00:06]} 28...
Qxf3+ {[%clk 0:01:30.9]} 29. Kg1 {[%clk 0:00:05.9]} 29... Nf4 {[%clk 0:01:31.4]}
30. Qg5 {[%clk 0:00:04.9]} 30... Nh3# {[%clk 0:01:30.9]} 0-1

[Event "Late-Titled-Tuesday-Blitz-October-03-2023"]
[Site "Chess.com"]
[Date "2023.10.03"]
[Round "3"]
[White "marik_spb"]
[Black "Lennis93"]
[Result "0-1"]
[WhiteElo "2387"]
[BlackElo "2714"]
[TimeControl "180+1"]
[EndTime "14:25:28 PDT"]
[Termination "Lennis93 won by checkmate"]

1. d4 {[%clk 0:02:57.8]} 1... d5 {[%clk 0:02:59.7]} 2. c4 {[%clk 0:02:57.7]}
2... dxc4 {[%clk 0:02:59.5]} 3. Nf3 {[%clk 0:02:57.7]} 3... Nf6 {[%clk
0:02:59.9]} 4. Nc3 {[%clk 0:02:56]} 4... a6 {[%clk 0:03:00.8]} 5. a4 {[%clk
0:02:55.8]} 5... Bf5 {[%clk 0:02:57.1]} 6. e3 {[%clk 0:02:53.6]} 6... e6 {[%clk
0:02:57.4]} 7. Bxc4 {[%clk 0:02:51.7]} 7... c5 {[%clk 0:02:57.8]} 8. O-O {[%clk
0:02:51]} 8... Nc6 {[%clk 0:02:57.9]} 9. Ne5 {[%clk 0:02:24.1]} 9... Nxe5 {[%clk
0:02:56]} 10. dxe5 {[%clk 0:02:25]} 10... Qxd1 {[%clk 0:02:55.8]} 11. Rxd1
{[%clk 0:02:24.5]} 11... Nd7 {[%clk 0:02:56.2]} 12. e4 {[%clk 0:02:13.4]} 12...
Bg6 {[%clk 0:02:55.7]} 13. f4 {[%clk 0:02:09.1]} 13... h5 {[%clk 0:02:53.1]} 14.
Be3 {[%clk 0:02:03.8]} 14... Nb8 {[%clk 0:02:50.7]} 15. Rf1 {[%clk 0:00:58.1]}
15... Nc6 {[%clk 0:02:45.9]} 16. a5 {[%clk 0:00:55.3]} 16... Be7 {[%clk
0:02:44.5]} 17. Bb3 {[%clk 0:00:52.5]} 17... O-O-O {[%clk 0:02:42.8]} 18. f5
{[%clk 0:00:51.3]} 18... exf5 {[%clk 0:02:39.8]} 19. exf5 {[%clk 0:00:52.2]}
19... Bh7 {[%clk 0:02:40.3]} 20. f6 {[%clk 0:00:46.6]} 20... gxf6 {[%clk
0:02:39]} 21. exf6 {[%clk 0:00:47.5]} 21... Bd6 {[%clk 0:02:38.3]} 22. Bxf7
{[%clk 0:00:46.5]} 22... Nd4 {[%clk 0:02:35.2]} 23. Bc4 {[%clk 0:00:32]} 23...
Nc2 {[%clk 0:02:34.5]} 24. Bh6 {[%clk 0:00:25.3]} 24... Nxa1 {[%clk 0:02:24.2]}
25. Rxa1 {[%clk 0:00:26.2]} 25... Bd3 {[%clk 0:02:22.5]} 26. Be6+ {[%clk
0:00:19.7]} 26... Kc7 {[%clk 0:02:22.9]} 27. Bg7 {[%clk 0:00:19.9]} 27... Be5
{[%clk 0:02:20.9]} 28. Bxh8 {[%clk 0:00:18.3]} 28... Bd4+ {[%clk 0:02:20.5]} 29.
Kh1 {[%clk 0:00:18.2]} 29... Rxh8 {[%clk 0:02:21.4]} 30. f7 {[%clk 0:00:18.5]}
30... Kd6 {[%clk 0:02:21.3]} 31. Bb3 {[%clk 0:00:15.8]} 31... c4 {[%clk
0:02:19.8]} 32. Ba4 {[%clk 0:00:15.3]} 32... h4 {[%clk 0:02:16]} 33. h3 {[%clk
0:00:14]} 33... Ke7 {[%clk 0:02:14.2]} 34. Be8 {[%clk 0:00:13.9]} 34... Rh5
{[%clk 0:02:13.7]} 35. Re1+ {[%clk 0:00:13.8]} 35... Kf8 {[%clk 0:02:14]} 36.
Re6 {[%clk 0:00:09.2]} 36... Rxa5 {[%clk 0:02:10.6]} 37. g4 {[%clk 0:00:07]}
37... hxg3 {[%clk 0:02:08.6]} 38. Kg2 {[%clk 0:00:07.3]} 38... Rg5 {[%clk
0:02:03]} 39. h4 {[%clk 0:00:05.2]} 39... Bf1+ {[%clk 0:02:03.6]} 40. Kxf1
{[%clk 0:00:02.1]} 40... g2+ {[%clk 0:02:03.7]} 41. Ke2 {[%clk 0:00:03]} 41...
Rg4 {[%clk 0:01:53.8]} 42. Rh6 {[%clk 0:00:01.9]} 42... g1=Q {[%clk 0:01:53.5]}
43. Kd2 {[%clk 0:00:01.3]} 43... Qe3+ {[%clk 0:01:53]} 44. Kc2 {[%clk
0:00:01.7]} 44... Rg2+ {[%clk 0:01:52.6]} 45. Kb1 {[%clk 0:00:01.9]} 45... Rxb2+
{[%clk 0:01:51.2]} 46. Kxb2 {[%clk 0:00:01.5]} 46... Qxc3+ {[%clk 0:01:51.3]}
47. Kb1 {[%clk 0:00:02.4]} 47... Qb2# {[%clk 0:01:51.5]} 0-1

[Event "Late-Titled-Tuesday-Blitz-October-03-2023"]
[Site "Chess.com"]
[Date "2023.10.03"]
[Round "3"]
[White "jjbolanos"]
[Black "tantaan"]
[Result "0-1"]
[WhiteElo "2093"]
[BlackElo "2355"]
[TimeControl "180+1"]
[EndTime "14:25:30 PDT"]
[Termination "tantaan won by resignation"]

1. e4 {[%clk 0:03:00.9]} 1... c5 {[%clk 0:02:59.8]} 2. c3 {[%clk 0:03:00.2]}
2... d5 {[%clk 0:02:59.6]} 3. exd5 {[%clk 0:03:00.3]} 3... Qxd5 {[%clk
0:03:00.5]} 4. d4 {[%clk 0:03:00.9]} 4... e6 {[%clk 0:03:00.8]} 5. Nf3 {[%clk
0:03:01.1]} 5... Nf6 {[%clk 0:03:01.2]} 6. Bd3 {[%clk 0:03:01.7]} 6... Be7
{[%clk 0:02:57.1]} 7. O-O {[%clk 0:03:01.6]} 7... O-O {[%clk 0:02:57.2]} 8. Re1
{[%clk 0:03:01.8]} 8... Rd8 {[%clk 0:02:57.2]} 9. Be3 {[%clk 0:03:01.1]} 9...
Nc6 {[%clk 0:02:55.5]} 10. Bc2 {[%clk 0:02:57.7]} 10... Qh5 {[%clk 0:02:52.2]}
11. Qe2 {[%clk 0:02:54.7]} 11... cxd4 {[%clk 0:02:39.1]} 12. Nxd4 {[%clk
0:02:51.1]} 12... Qxe2 {[%clk 0:02:36.4]} 13. Rxe2 {[%clk 0:02:51.8]} 13... Nxd4
{[%clk 0:02:23.8]} 14. Bxd4 {[%clk 0:02:51.9]} 14... b6 {[%clk 0:02:23]} 15. Nd2
{[%clk 0:02:45.2]} 15... Bb7 {[%clk 0:02:22.8]} 16. Ne4 {[%clk 0:02:45.3]} 16...
Nd5 {[%clk 0:02:19.1]} 17. g3 {[%clk 0:02:38.3]} 17... Rac8 {[%clk 0:02:12]} 18.
a3 {[%clk 0:02:31.9]} 18... Ba6 {[%clk 0:01:50.1]} 19. Rd2 {[%clk 0:02:17.5]}
19... f5 {[%clk 0:01:49.4]} 20. c4 {[%clk 0:01:49.8]} 20... Bxc4 {[%clk
0:01:40.2]} 21. Nc3 {[%clk 0:01:50.4]} 21... Nxc3 {[%clk 0:01:32.8]} 22. bxc3
{[%clk 0:01:38.7]} 22... e5 {[%clk 0:01:29.5]} 23. Bxf5 {[%clk 0:01:38.2]} 23...
exd4 {[%clk 0:01:21.8]} 24. Bxc8 {[%clk 0:01:38.4]} 24... Rxc8 {[%clk
0:01:21.2]} 25. cxd4 {[%clk 0:01:38.8]} 25... Bd5 {[%clk 0:01:17.6]} 26. Re1
{[%clk 0:01:36.6]} 26... Bxa3 {[%clk 0:01:13.8]} 27. Ra1 {[%clk 0:01:36.7]}
27... Bb4 {[%clk 0:01:13]} 28. Rb2 {[%clk 0:01:35.9]} 28... Bc3 {[%clk
0:01:10.3]} 29. Rc2 {[%clk 0:01:36.2]} 29... b5 {[%clk 0:00:55.7]} 30. Rxa7
{[%clk 0:01:31.2]} 30... b4 {[%clk 0:00:56.3]} 31. Ra1 {[%clk 0:01:05]} 31...
Re8 {[%clk 0:00:38.3]} 32. Ra5 {[%clk 0:00:52.5]} 0-1

[Event "Late-Titled-Tuesday-Blitz-October-03-2023"]
[Site "Chess.com"]
[Date "2023.10.03"]
[Round "3"]
[White "luca_va99"]
[Black "slorovel"]
[Result "0-1"]
[WhiteElo "2283"]
[BlackElo "2488"]
[TimeControl "180+1"]
[EndTime "14:25:32 PDT"]
[Termination "slorovel won on time"]

1. Nf3 {[%clk 0:03:00.9]} 1... c5 {[%clk 0:02:59.4]} 2. c4 {[%clk 0:03:00.5]}
2... e6 {[%clk 0:02:58.9]} 3. Nc3 {[%clk 0:02:59.9]} 3... d5 {[%clk 0:02:59.1]}
4. cxd5 {[%clk 0:02:59.6]} 4... exd5 {[%clk 0:03:00]} 5. d4 {[%clk 0:03:00.5]}
5... Nf6 {[%clk 0:02:56.6]} 6. g3 {[%clk 0:03:01]} 6... Nc6 {[%clk 0:02:54.5]}
7. Bg2 {[%clk 0:03:00.8]} 7... Be7 {[%clk 0:02:50.2]} 8. O-O {[%clk 0:02:59.8]}
8... O-O {[%clk 0:02:50.6]} 9. dxc5 {[%clk 0:02:59.9]} 9... Bxc5 {[%clk
0:02:50.1]} 10. Bg5 {[%clk 0:03:00.4]} 10... Be6 {[%clk 0:02:48.3]} 11. Rc1
{[%clk 0:02:48.6]} 11... Be7 {[%clk 0:02:43.5]} 12. Nd4 {[%clk 0:02:28.4]} 12...
Qb6 {[%clk 0:02:40.2]} 13. Nb3 {[%clk 0:02:20.4]} 13... d4 {[%clk 0:02:37]} 14.
Na4 {[%clk 0:02:19.2]} 14... Qb4 {[%clk 0:02:36.1]} 15. Nac5 {[%clk 0:02:17.7]}
15... Bxb3 {[%clk 0:02:30.3]} 16. Nxb3 {[%clk 0:02:11.3]} 16... Rfd8 {[%clk
0:02:19.9]} 17. Bxc6 {[%clk 0:02:03.7]} 17... bxc6 {[%clk 0:02:16.3]} 18. Rxc6
{[%clk 0:02:04.6]} 18... a5 {[%clk 0:02:13.1]} 19. Qd2 {[%clk 0:01:57.8]} 19...
Qb7 {[%clk 0:02:08]} 20. Rfc1 {[%clk 0:01:49.3]} 20... Ne4 {[%clk 0:02:07.1]}
21. Qc2 {[%clk 0:00:37.6]} 21... Nxg5 {[%clk 0:01:58.5]} 22. Rc7 {[%clk
0:00:37.7]} 22... Qb4 {[%clk 0:01:50.2]} 23. a3 {[%clk 0:00:33.4]} 23... Qd6
{[%clk 0:01:49.3]} 24. Rc6 {[%clk 0:00:28.1]} 24... Qd5 {[%clk 0:01:47.5]} 25.
f3 {[%clk 0:00:22.1]} 25... d3 {[%clk 0:01:46.3]} 26. Qxd3 {[%clk 0:00:18.5]}
26... Qxd3 {[%clk 0:01:46]} 27. exd3 {[%clk 0:00:19.4]} 27... Rxd3 {[%clk
0:01:44.5]} 28. Rc8+ {[%clk 0:00:19.4]} 28... Rxc8 {[%clk 0:01:44.2]} 29. Rxc8+
{[%clk 0:00:20.3]} 29... Rd8 {[%clk 0:01:44]} 30. Rxd8+ {[%clk 0:00:13.3]} 30...
Bxd8 {[%clk 0:01:44.2]} 31. Kf2 {[%clk 0:00:14.2]} 31... a4 {[%clk 0:01:44.1]}
32. Nd2 {[%clk 0:00:14]} 32... f5 {[%clk 0:01:43]} 33. Ke2 {[%clk 0:00:13.9]}
33... Kf7 {[%clk 0:01:42.2]} 34. Kd3 {[%clk 0:00:14.3]} 34... Ba5 {[%clk
0:01:39.8]} 35. Nc4 {[%clk 0:00:08.2]} 35... Be1 {[%clk 0:01:37.2]} 36. f4
{[%clk 0:00:05.5]} 36... Ne4 {[%clk 0:01:37.3]} 37. Nb6 {[%clk 0:00:05.7]} 37...
Nc5+ {[%clk 0:01:34.1]} 38. Kc4 {[%clk 0:00:05.6]} 38... Bf2 {[%clk 0:01:34.3]}
39. Nd5 {[%clk 0:00:02.5]} 39... Bg1 {[%clk 0:01:33]} 40. h3 {[%clk 0:00:01.5]}
40... Ne4 {[%clk 0:01:31.6]} 0-1

[Event "Late-Titled-Tuesday-Blitz-October-03-2023"]
[Site "Chess.com"]
[Date "2023.10.03"]
[Round "3"]
[White "ArmanGhevondyanchess"]
[Black "BardArtem"]
[Result "0-1"]
[WhiteElo "2556"]
[BlackElo "2787"]
[TimeControl "180+1"]
[EndTime "14:25:39 PDT"]
[Termination "BardArtem won by checkmate"]

1. Nf3 {[%clk 0:03:00.9]} 1... d5 {[%clk 0:02:58.7]} 2. g3 {[%clk 0:03:01.1]}
2... Nc6 {[%clk 0:02:56.4]} 3. d4 {[%clk 0:03:01]} 3... Bf5 {[%clk 0:02:55.9]}
4. Bg2 {[%clk 0:03:01.3]} 4... Nb4 {[%clk 0:02:55.9]} 5. Na3 {[%clk 0:03:00.3]}
5... e6 {[%clk 0:02:55.4]} 6. O-O {[%clk 0:03:00.4]} 6... h6 {[%clk 0:02:55.1]}
7. Ne5 {[%clk 0:03:00.7]} 7... Nf6 {[%clk 0:02:47.7]} 8. c3 {[%clk 0:02:59.2]}
8... Na6 {[%clk 0:02:41.3]} 9. Nc2 {[%clk 0:02:52.5]} 9... c6 {[%clk 0:02:23.8]}
10. f3 {[%clk 0:02:48.9]} 10... Be7 {[%clk 0:02:21.5]} 11. Qe1 {[%clk 0:02:46]}
11... Bxc2 {[%clk 0:02:18.7]} 12. e4 {[%clk 0:02:37.6]} 12... Ba4 {[%clk
0:02:03.6]} 13. Rf2 {[%clk 0:02:29.7]} 13... Nc7 {[%clk 0:02:00.8]} 14. b3
{[%clk 0:02:29.5]} 14... Bb5 {[%clk 0:02:00.6]} 15. a4 {[%clk 0:02:29.9]} 15...
Ba6 {[%clk 0:02:01.1]} 16. h4 {[%clk 0:02:24.4]} 16... Nd7 {[%clk 0:01:50]} 17.
Ng4 {[%clk 0:02:23.3]} 17... h5 {[%clk 0:01:36.8]} 18. Nh2 {[%clk 0:02:18.7]}
18... e5 {[%clk 0:01:36.6]} 19. exd5 {[%clk 0:02:12.1]} 19... Nxd5 {[%clk
0:01:35.5]} 20. dxe5 {[%clk 0:02:11.4]} 20... Bc5 {[%clk 0:01:35.6]} 21. Bg5
{[%clk 0:02:06.8]} 21... Qb6 {[%clk 0:01:33.8]} 22. Ra2 {[%clk 0:02:05.1]} 22...
Qxb3 {[%clk 0:01:29]} 23. e6 {[%clk 0:02:00.1]} 23... Qxa2 {[%clk 0:01:10]} 24.
exd7+ {[%clk 0:01:57.1]} 24... Kxd7 {[%clk 0:01:10.9]} 25. Bh3+ {[%clk
0:01:55.4]} 25... Kd6 {[%clk 0:00:43.5]} 26. Bd2 {[%clk 0:01:36.1]} 26... Rae8
{[%clk 0:00:38.3]} 27. Qc1 {[%clk 0:01:28.4]} 27... Bxf2+ {[%clk 0:00:30.3]} 28.
Kh1 {[%clk 0:01:28.6]} 28... Be3 {[%clk 0:00:23.6]} 29. c4 {[%clk 0:01:27]}
29... Bxd2 {[%clk 0:00:21.9]} 30. c5+ {[%clk 0:01:27]} 30... Kc7 {[%clk
0:00:21.5]} 31. Qd1 {[%clk 0:01:26.9]} 31... Qb2 {[%clk 0:00:20.2]} 32. Bf1
{[%clk 0:01:23.8]} 32... Qc1 {[%clk 0:00:19.2]} 33. Qb3 {[%clk 0:01:22.1]} 33...
Bxf1 {[%clk 0:00:18.2]} 34. Qa3 {[%clk 0:00:59.6]} 34... Bh3+ {[%clk 0:00:15.9]}
35. Nf1 {[%clk 0:01:00.5]} 35... Qxf1+ {[%clk 0:00:15.9]} 36. Kh2 {[%clk
0:00:59.6]} 36... Qg2# {[%clk 0:00:16.8]} 0-1